fUSD/lending_fUSD_20241107
["ID","MTS","AMOUNT","RATE_DAILY","PERIOD"]
[341589343,1731011467786,-500.0,0.00028219,2]
[341589344,1731011467796,-500.0,0.00028219,2]
[341589345,1731011467805,-500.0,0.00028219,2]
[341589346,1731011467814,-500.0,0.00028219,2]
[341589347,1731011467823,-333.75330641,0.00028219,2]
[341589348,1731011467833,-622.33,0.00028219,2]
[341589349,1731011467843,-500.0,0.00028219,2]
[341589350,1731011467853,-500.0,0.00028219,2]
[341589351,1731011467862,-735.0,0.00028219,2]
[341589352,1731011467872,-500.0,0.00028219,2]
[341589353,1731011467884,-500.0,0.00028219,2]
[341589354,1731011467894,-500.0,0.00028219,2]
[341589355,1731011467904,-1157.84,0.00028219,2]
[341589356,1731011467913,-500.0,0.00028219,2]
[341589357,1731011467922,-500.0,0.00028219,2]
[341589358,1731011467932,-500.0,0.00028219,2]
[341589359,1731011467941,-624.41018221,0.00028219,2]
[341589360,1731011467951,-500.0,0.00028219,2]
[341589361,1731011467964,-500.0,0.00028219,2]
[341589362,1731011467973,-664.88,0.00028219,2]
[341589363,1731011467983,-500.0,0.00028219,2]
[341589364,1731011468284,-842.0,0.00028219,2]
[341589365,1731011468300,-500.0,0.00028219,2]
[341589366,1731011468310,-500.0,0.00028219,2]
[341589367,1731011468320,-500.0,0.00028219,2]
[341589368,1731011468330,-248.24159718,0.00028219,2]
[341589369,1731011468340,-500.0,0.00028219,2]
[341589370,1731011468350,-500.0,0.00028219,2]
[341589371,1731011468360,-500.0,0.00028219,2]
[341589372,1731011468369,-500.0,0.00028219,2]
[341589373,1731011468381,-500.0,0.00028219,2]
[341589374,1731011468390,-500.0,0.00028219,2]
[341589375,1731011468400,-500.0,0.00028219,2]
[341589376,1731011468409,-500.0,0.00028219,2]
[341589377,1731011468418,-500.0,0.00028219,2]
[341589378,1731011468430,-639.66398757,0.00028219,2]
[341589379,1731011468440,-849.33,0.00028219,2]
[341589380,1731011468450,-500.0,0.00028219,2]
[341589381,1731011468459,-500.0,0.00028219,2]
[341589382,1731011468470,-500.0,0.00028219,2]
[341589383,1731011468479,-1146.86,0.00028219,2]
[341589384,1731011468488,-500.0,0.00028219,2]
[341589385,1731011468498,-2367.1,0.00028219,2]
[341589386,1731011468507,-812.73,0.00028219,2]
[341589387,1731011468516,-500.0,0.00028219,2]
[341589388,1731011468526,-500.0,0.00028219,2]
[341589389,1731011468535,-505.41,0.00028219,2]
[341589390,1731011468544,-500.0,0.00028219,2]
[341589391,1731011468554,-859.78,0.00028219,2]
[341589392,1731011468563,-500.0,0.00028219,2]
[341589393,1731011468572,-1030.59,0.00028219,2]
[341589394,1731011468582,-500.0,0.00028219,2]
[341589395,1731011468591,-527.86321372,0.00028219,2]
[341589396,1731011468600,-500.0,0.00028219,2]
[341589397,1731011468610,-1049.18,0.00028219,2]
[341589398,1731011468619,-758.06,0.00028219,2]
[341589399,1731011468631,-500.0,0.00028219,2]
[341589400,1731011468640,-584.38,0.00028219,2]
[341589401,1731011468650,-500.0,0.00028219,2]
[341589402,1731011468659,-795.48,0.00028219,2]
[341589403,1731011468668,-772.33,0.00028219,2]
[341589404,1731011468677,-500.0,0.00028219,2]
[341589405,1731011468687,-500.0,0.00028219,2]
[341589406,1731011468697,-500.0,0.00028219,2]
[341589407,1731011468707,-500.0,0.00028219,2]
[341589408,1731011468716,-826.25,0.00028219,2]
[341589409,1731011468727,-500.0,0.00028219,2]
[341589410,1731011468736,-500.0,0.00028219,2]
[341589411,1731011468746,-500.0,0.00028219,2]
[341589412,1731011468755,-922.87,0.00028219,2]
[341589413,1731011468765,-226.2518009,0.00028219,2]
[341589414,1731011468775,-500.0,0.00028219,2]
[341589415,1731011468784,-570.07,0.00028219,2]
[341589416,1731011468794,-500.0,0.00028219,2]
[341589417,1731011468803,-990.65,0.00028219,2]
[341589418,1731011468813,-500.0,0.00028219,2]
[341589419,1731011468822,-1391.61,0.00028219,2]
[341589420,1731011468832,-500.0,0.00028219,2]
[341589421,1731011468842,-962.46,0.00028219,2]
[341589422,1731011468851,-500.0,0.00028219,2]
[341589423,1731011468861,-525.18,0.00028219,2]
[341589424,1731011468870,-500.0,0.00028219,2]
[341589425,1731011468882,-500.0,0.00028219,2]
[341589426,1731011468892,-746.75,0.00028219,2]
[341589427,1731011468901,-500.0,0.00028219,2]
[341589428,1731011468911,-500.0,0.00028219,2]
[341589429,1731011468920,-500.0,0.00028219,2]
[341589430,1731011468930,-500.0,0.00028219,2]
[341589431,1731011468940,-500.0,0.00028219,2]
[341589432,1731011468949,-623.38,0.00028219,2]
[341589433,1731011468963,-500.0,0.00028219,2]
[341589434,1731011468974,-500.0,0.00028219,2]
[341589435,1731011468983,-1391.91,0.00028219,2]
[341589436,1731011468994,-500.0,0.00028219,2]
[341589437,1731011469003,-500.0,0.00028219,2]
[341589438,1731011469013,-513.5,0.00028219,2]
[341589439,1731011469023,-500.0,0.00028219,2]
[341589440,1731011469034,-500.0,0.00028219,2]
[341589441,1731011469044,-500.0,0.00028219,2]
[341589442,1731011469054,-500.0,0.00028219,2]
[341589443,1731011469063,-500.0,0.00028219,2]
[341589444,1731011469072,-500.0,0.00028219,2]
[341589445,1731011469082,-500.0,0.00028219,2]
[341589446,1731011469091,-461.3,0.00028219,2]
[341589447,1731011469101,-500.0,0.00028219,2]
[341589448,1731011469110,-741.21,0.00028219,2]
[341589449,1731011469119,-500.0,0.00028219,2]
[341589450,1731011469133,-500.0,0.00028219,2]
[341589451,1731011469142,-500.0,0.00028219,2]
[341589452,1731011469152,-632.28,0.00028219,2]
[341589453,1731011469161,-708.91,0.00028219,2]
[341589454,1731011469171,-782.76,0.00028219,2]
[341589455,1731011469180,-500.0,0.00028219,2]
[341589456,1731011469190,-358.9,0.00028219,2]
[341589457,1731011469200,-1858.207835,0.00028219,7]
[341589458,1731011469209,-602.34,0.00028219,2]
[341589459,1731011469219,-500.0,0.00028219,2]
[341589460,1731011469228,-1858.207835,0.00028219,7]
[341589461,1731011469237,-500.0,0.00028219,2]
[341589462,1731011469247,-500.0,0.00028219,2]
[341589463,1731011469257,-500.0,0.00028219,2]
[341589464,1731011469267,-500.45,0.00028219,2]
[341589465,1731011469277,-500.0,0.00028219,2]
[341589466,1731011469287,-500.0,0.00028219,2]
[341589467,1731011469297,-500.0,0.00028219,2]
[341589468,1731011469307,-500.0,0.00028219,2]
[341589469,1731011469316,-513.55,0.00028219,2]
[341589470,1731011469326,-500.0,0.00028219,2]
[341589471,1731011469335,-500.0,0.00028219,2]
[341589472,1731011469345,-151.0,0.00028219,7]
[341589473,1731011469355,-500.0,0.00028219,2]
[341589474,1731011469365,-500.0,0.00028219,2]
[341589475,1731011469379,-847.49,0.00028219,2]
[341589476,1731011469390,-500.0,0.00028219,2]
[341589477,1731011469399,-196.027821,0.00028219,7]
[341589478,1731011469408,-3273.297285,0.00028219,7]
[341589479,1731011469417,-627.61,0.00028219,2]
[341589480,1731011469426,-196.027821,0.00028219,7]
[341589481,1731011469436,-500.0,0.00028219,2]
[341589482,1731011469446,-3273.297285,0.00028219,7]
[341589483,1731011469455,-500.0,0.00028219,2]
[341589484,1731011469465,-758.1,0.00028219,2]
[341589485,1731011469474,-500.0,0.00028219,2]
[341589486,1731011469484,-500.0,0.00028219,2]
[341589487,1731011469493,-500.0,0.00028219,2]
[341589488,1731011469503,-500.0,0.00028219,2]
[341589489,1731011469512,-500.0,0.00028219,2]
[341589490,1731011469522,-562.85124373,0.00028219,2]
[341589491,1731011469531,-500.0,0.00028219,2]
[341589492,1731011469540,-500.0,0.00028219,2]
[341589493,1731011469549,-521.08,0.00028219,2]
[341589494,1731011469559,-500.0,0.00028219,2]
[341589495,1731011469568,-1032.51,0.00028219,2]
[341589496,1731011469578,-500.0,0.00028219,2]
[341589497,1731011469587,-500.0,0.00028219,2]
[341589498,1731011469596,-500.0,0.00028219,2]
[341589499,1731011469606,-304.431527,0.00028219,2]
[341589500,1731011469615,-500.0,0.00028219,2]
[341589501,1731011469626,-500.0,0.00028219,2]
[341589502,1731011469637,-512.03,0.00028219,2]
[341589503,1731011469646,-633.18,0.00028219,2]
[341589504,1731011469656,-304.431527,0.00028219,2]
[341589505,1731011469665,-500.0,0.00028219,2]
[341589506,1731011469674,-500.0,0.00028219,2]
[341589507,1731011469684,-500.0,0.00028219,2]
[341589508,1731011469693,-500.0,0.00028219,2]
[341589509,1731011469703,-500.0,0.00028219,2]
[341589510,1731011469712,-692.91,0.00028219,2]
[341589511,1731011469721,-1047.6,0.00028219,2]
[341589512,1731011469731,-730.81,0.00028219,2]
[341589513,1731011469740,-500.0,0.00028219,2]
[341589514,1731011469749,-1016.1,0.00028219,2]
[341589515,1731011469758,-1860.33,0.00028219,2]
[341589516,1731011469768,-500.0,0.00028219,2]
[341589517,1731011469778,-602.92,0.00028219,2]
[341589518,1731011469787,-500.0,0.00028219,2]
[341589519,1731011469797,-500.0,0.00028219,2]
[341589520,1731011469806,-500.0,0.00028219,2]
[341589521,1731011469815,-1864.69,0.00028219,2]
[341589522,1731011469825,-1880.48,0.00028219,2]
[341589523,1731011469834,-500.0,0.00028219,2]
[341589524,1731011469844,-500.0,0.00028219,2]
[341589525,1731011469854,-1023.36,0.00028219,2]
[341589526,1731011469863,-500.0,0.00028219,2]
[341589527,1731011469872,-759.25,0.00028219,2]
[341589528,1731011469883,-1882.14,0.00028219,2]
[341589529,1731011469893,-500.0,0.00028219,2]
[341589530,1731011469903,-12863.27,0.00028219,2]
[341589531,1731011469913,-810.01,0.00028219,2]
[341589532,1731011469923,-500.0,0.00028219,2]
[341589533,1731011469932,-529.48,0.00028219,2]
[341589534,1731011469941,-500.0,0.00028219,2]
[341589535,1731011469952,-741.68,0.00028219,2]
[341589536,1731011469965,-790.428663,0.00028219,7]
[341589537,1731011469975,-1287.22,0.00028219,2]
[341589538,1731011469984,-500.0,0.00028219,2]
[341589539,1731011469994,-504.3,0.00028219,2]
[341589540,1731011470004,-790.428663,0.00028219,7]
[341589541,1731011470014,-1180.37,0.00028219,2]
[341589542,1731011470023,-500.0,0.00028219,2]
[341589543,1731011470035,-844.4,0.00028219,2]
[341589544,1731011470045,-803.88,0.00028219,2]
[341589545,1731011470054,-287.06505572,0.00028219,2]
[341589546,1731011470064,-500.0,0.00028219,2]
[341589547,1731011470073,-500.0,0.00028219,2]
[341589548,1731011470082,-542.4,0.00028219,2]
[341589549,1731011470091,-794.89,0.00028219,2]
[341589550,1731011470102,-411.86357119,0.00028219,2]
[341589551,1731011470111,-4019.74,0.00028219,2]
[341589552,1731011470120,-500.0,0.00028219,2]
[341589553,1731011470132,-759.28,0.00028219,2]
[341589554,1731011470142,-437.58,0.00028219,2]
[341589555,1731011470151,-652.81,0.00028219,2]
[341589556,1731011470160,-3623.88,0.00028219,2]
[341589557,1731011470170,-706.87,0.00028219,2]
[341589558,1731011470180,-1354.3,0.00028219,2]
[341589559,1731011470190,-576.29,0.00028219,2]
[341589560,1731011470200,-534.58,0.00028219,2]
[341589561,1731011470209,-511.69,0.00028219,2]
[341589562,1731011470219,-500.0,0.00028219,2]
[341589563,1731011470228,-1135.74,0.00028219,2]
[341589564,1731011470237,-500.0,0.00028219,2]
[341589565,1731011470247,-3829.5,0.00028219,2]
[341589566,1731011470255,-500.0,0.00028219,2]
[341589567,1731011470265,-532.84,0.00028219,2]
[341589568,1731011470274,-1210.85,0.00028219,2]
[341589569,1731011470283,-2233.74,0.00028219,2]
[341589570,1731011470292,-1569.08,0.00028219,2]
[341589571,1731011470301,-500.0,0.00028219,2]
[341589572,1731011470310,-2095.57,0.00028219,2]
[341589573,1731011470319,-500.0,0.00028219,2]
[341589574,1731011470328,-993.67,0.00028219,2]
[341589575,1731011470338,-500.0,0.00028219,2]
[341589576,1731011470348,-411.960432,0.00028219,7]
[341589577,1731011470357,-1109.47,0.00028219,2]
[341589578,1731011470367,-1076.61,0.00028219,2]
[341589579,1731011470382,-2427.73,0.00028219,2]
[341589580,1731011470391,-411.960432,0.00028219,7]
[341589581,1731011470400,-500.0,0.00028219,2]
[341589582,1731011470410,-822.66,0.00028219,2]
[341589583,1731011470419,-810.32,0.00028219,2]
[341589584,1731011470429,-822.49,0.00028219,2]
[341589585,1731011470438,-534.98,0.00028219,2]
[341589586,1731011470447,-347.026174,0.00028219,7]
[341589587,1731011470457,-285.98549964,0.00028219,2]
[341589588,1731011470466,-1190.75,0.00028219,2]
[341589589,1731011470475,-860.77,0.00028219,2]
[341589590,1731011470484,-557.41340469,0.00028219,2]
[341589591,1731011470493,-347.026174,0.00028219,7]
[341589592,1731011470502,-620.7,0.00028219,2]
[341589593,1731011470512,-500.0,0.00028219,2]
[341589594,1731011470521,-500.0,0.00028219,2]
[341589595,1731011470530,-500.0,0.00028219,2]
[341589596,1731011470539,-500.0,0.00028219,2]
[341589597,1731011470549,-500.0,0.00028219,2]
[341589598,1731011470558,-500.0,0.00028219,2]
[341589599,1731011470567,-500.0,0.00028219,2]
[341589600,1731011470577,-539.76,0.00028219,2]
[341589601,1731011470586,-2260.02,0.00028219,2]
[341589602,1731011470595,-1549.38,0.00028219,2]
[341589603,1731011470604,-500.0,0.00028219,2]
[341589604,1731011470614,-823.25,0.00028219,2]
[341589605,1731011470695,-1096.41,0.00028219,2]
[341589606,1731011470705,-500.0,0.00028219,2]
[341589607,1731011470714,-500.0,0.00028219,2]
[341589608,1731011470724,-669.24,0.00028219,2]
[341589609,1731011470733,-789.48,0.00028219,2]
[341589610,1731011470742,-1841.15,0.00028219,2]
[341589611,1731011470751,-500.0,0.00028219,2]
[341589612,1731011470760,-548.44,0.00028219,2]
[341589613,1731011470770,-698.1,0.00028219,2]
[341589614,1731011470779,-569.76,0.00028219,2]
[341589615,1731011470789,-1008.09,0.00028219,2]
[341589616,1731011470798,-500.0,0.00028219,2]
[341589617,1731011470807,-500.0,0.00028219,2]
[341589618,1731011470816,-673.81,0.00028219,2]
[341589619,1731011470825,-500.0,0.00028219,2]
[341589620,1731011470835,-826.95537887,0.00028219,2]
[341589621,1731011471304,-1670.67462113,0.00028219,2]
[341589622,1731011471313,-500.0,0.00028219,2]
[341589623,1731011471322,-835.05,0.00028219,2]
[341589624,1731011471332,-1408.31,0.00028219,2]
[341589625,1731011471341,-288.23998583,0.00028219,2]
[341589626,1731011471371,-616.36001417,0.00028219,2]
[341589627,1731011471383,-561.13,0.00028219,2]
[341589628,1731011471392,-500.0,0.00028219,2]
[341589629,1731011471402,-946.87,0.00028219,2]
[341589630,1731011471411,-526.97,0.00028219,2]
[341589631,1731011471421,-6882.67,0.00028219,2]
[341589632,1731011471431,-500.0,0.00028219,2]
[341589633,1731011471440,-1999.04,0.00028219,2]
[341589634,1731011471449,-821.23,0.00028219,2]
[341589635,1731011471458,-560.03,0.00028219,2]
[341589636,1731011471467,-687.39,0.00028219,2]
[341589637,1731011471476,-2301.65,0.00028219,2]
[341589638,1731011471485,-1093.66,0.00028219,2]
[341589639,1731011471494,-500.0,0.00028219,2]
[341589640,1731011471503,-982.98,0.00028219,2]
[341589641,1731011471514,-991.72,0.00028219,2]
[341589642,1731011471526,-5959.66,0.00028219,2]
[341589643,1731011471536,-500.0,0.00028219,2]
[341589644,1731011471547,-500.0,0.00028219,2]
[341589645,1731011471557,-901.99,0.00028219,2]
[341589646,1731011471567,-731.06,0.00028219,2]
[341589647,1731011471576,-1677.15,0.00028219,2]
[341589648,1731011471585,-151.0,0.00028219,7]
[341589649,1731011471594,-571.58,0.00028219,2]
[341589650,1731011471605,-500.0,0.00028219,2]
[341589651,1731011471615,-151.0,0.00028219,7]
[341589652,1731011471627,-500.0,0.00028219,2]
[341589653,1731011471636,-1253.48,0.00028219,2]
[341589654,1731011471645,-515.96,0.00028219,2]
[341589655,1731011471654,-6458.46,0.00028219,2]
[341589656,1731011471663,-500.0,0.00028219,2]
[341589657,1731011471672,-151.0,0.00028219,7]
[341589658,1731011471681,-374.39853134,0.00028219,2]
[341589659,1731011471693,-125.60146866,0.00028219,2]
[341589660,1731011471702,-4746.89,0.00028219,2]
[341589661,1731011471711,-500.0,0.00028219,2]
[341589662,1731011471720,-500.0,0.00028219,2]
[341589663,1731011471730,-669.2,0.00028219,2]
[341589664,1731011471741,-500.0,0.00028219,2]
[341589665,1731011471750,-500.0,0.00028219,2]
[341589666,1731011471760,-800.33,0.00028219,2]
[341589667,1731011471769,-1504.63,0.00028219,2]
[341589668,1731011471778,-667.25,0.00028219,2]
[341589669,1731011471788,-150.0,0.00028224,2]
[341589670,1731011471797,-150.0,0.00028225,2]
[341589671,1731011471806,-276.64,0.00028226,2]
[341589672,1731011471816,-150.0,0.00028228,2]
[341589673,1731011471825,-150.0,0.00028231,2]
[341589674,1731011471835,-150.0,0.00028232,2]
[341589675,1731011471845,-150.0,0.00028236,2]
[341589676,1731011471854,-150.0,0.00028236,2]
[341589677,1731011471863,-150.0,0.00028238,2]
[341589678,1731011471873,-150.0,0.00028242,2]
[341589679,1731011471884,-150.0,0.00028244,2]
[341589680,1731011471893,-150.0,0.00028244,2]
[341589681,1731011471902,-150.0,0.00028246,2]
[341589682,1731011471911,-150.0,0.00028251,2]
[341589683,1731011471921,-150.0,0.00028251,2]
[341589684,1731011471930,-150.0,0.00028251,2]
[341589685,1731011471939,-150.0,0.00028254,2]
[341589686,1731011471948,-150.0,0.00028255,2]
[341589687,1731011471961,-150.0,0.00028255,2]
[341589688,1731011471970,-150.0,0.00028259,2]
[341589689,1731011471979,-1000.0,0.0002826,2]
[341589690,1731011471988,-1210.33,0.0002826,2]
[341589691,1731011471997,-588.8,0.0002826,2]
[341589692,1731011472007,-354.97271644,0.0002826,2]
[341589693,1731011472023,-254.71728356,0.0002826,2]
[341589694,1731011472032,-500.0,0.0002826,2]
[341589695,1731011472043,-500.0,0.0002826,2]
[341589696,1731011472052,-151.0,0.0002826,7]
[341589697,1731011472062,-500.0,0.0002826,2]
[341589698,1731011472071,-245.77316483,0.0002826,2]
[341589699,1731011472187,-483.97683517,0.0002826,2]
[341589700,1731011472196,-151.0,0.0002826,7]
[341589701,1731011472205,-694.0,0.0002826,2]
[341589702,1731011472214,-605.27,0.0002826,2]
[341589703,1731011472223,-615.66,0.0002826,2]
[341589704,1731011472232,-618.11,0.0002826,2]
[341589705,1731011472242,-740.59,0.0002826,2]
[341589706,1731011472251,-661.7,0.0002826,2]
[341589707,1731011472261,-1146.09,0.0002826,2]
[341589708,1731011472270,-271.9823268,0.0002826,2]
[341589709,1731011472930,-334.13518978,0.00027297,2]
[341589710,1731011472939,-1070.56,0.00027397,2]
[341589711,1731011472948,-500.0,0.00027397,2]
[341589712,1731011472959,-1070.56,0.00027671,2]
[341589713,1731011472971,-752.87,0.00027945,2]
[341589714,1731011472980,-1070.56,0.00027945,2]
[341589715,1731011472989,-752.87,0.00028219,2]
[341589716,1731011472998,-1070.56,0.00028219,2]
[341589717,1731011473008,-631.6276732,0.0002826,2]
[341589718,1731011473018,-500.0,0.0002826,7]
[341589719,1731011473030,-611.13,0.0002826,2]
[341589720,1731011473041,-536.6,0.0002826,2]
[341589721,1731011473051,-500.0,0.0002826,2]
[341589722,1731011473060,-1742.22,0.0002826,2]
[341589723,1731011473069,-681.8,0.0002826,2]
[341589724,1731011473078,-500.0,0.0002826,2]
[341589725,1731011473087,-796.28,0.0002826,2]
[341589726,1731011473097,-1014.82,0.0002826,2]
[341589727,1731011473106,-267.972963,0.0002826,7]
[341589728,1731011473115,-267.972963,0.0002826,7]
[341589729,1731011473124,-869.27,0.0002826,2]
[341589730,1731011473135,-1155.46,0.0002826,2]
[341589731,1731011473144,-803.98,0.0002826,2]
[341589732,1731011473154,-500.0,0.0002826,2]
[341589733,1731011473163,-720.32,0.0002826,2]
[341589734,1731011473172,-500.0,0.0002826,2]
[341589735,1731011473181,-702.99,0.0002826,2]
[341589736,1731011473191,-500.0,0.0002826,2]
[341589737,1731011473200,-614.56,0.0002826,2]
[341589738,1731011473209,-1075.73,0.0002826,2]
[341589739,1731011473219,-1171.81,0.0002826,2]
[341589740,1731011473228,-1149.96,0.0002826,2]
[341589741,1731011473237,-937.81,0.0002826,2]
[341589742,1731011473247,-500.0,0.0002826,2]
[341589743,1731011473256,-758.67,0.0002826,2]
[341589744,1731011473265,-315.50611096,0.0002826,2]
[341589745,1731011473275,-500.0,0.0002826,2]
[341589746,1731011473283,-500.0,0.0002826,2]
[341589747,1731011473293,-180.577007,0.0002826,7]
[341589748,1731011473302,-573.46,0.0002826,2]
[341589749,1731011473311,-1475.73,0.0002826,2]
[341589750,1731011473320,-671.65,0.0002826,2]
[341589751,1731011473329,-695.77,0.0002826,2]
[341589752,1731011473338,-500.0,0.0002826,2]
[341589753,1731011473347,-10075.22,0.0002826,2]
[341589754,1731011473356,-819.35,0.0002826,2]
[341589755,1731011473366,-647.4,0.0002826,2]
[341589756,1731011473375,-956.23,0.0002826,2]
[341589757,1731011473386,-689.92,0.0002826,2]
[341589758,1731011473395,-4249.4,0.0002826,2]
[341589759,1731011473405,-500.0,0.0002826,2]
[341589760,1731011473414,-500.0,0.0002826,2]
[341589761,1731011473424,-929.84,0.0002826,2]
[341589762,1731011473435,-907.42,0.0002826,2]
[341589763,1731011473444,-790.428663,0.0002826,7]
[341589764,1731011473454,-3743.23,0.0002826,2]
[341589765,1731011473464,-790.428663,0.0002826,7]
[341589766,1731011473473,-568.89,0.0002826,2]
[341589767,1731011473482,-500.0,0.0002826,2]
[341589768,1731011473492,-500.0,0.0002826,2]
[341589769,1731011473501,-1929.67,0.0002826,2]
[341589770,1731011473511,-500.0,0.0002826,2]
[341589771,1731011473520,-500.0,0.0002826,2]
[341589772,1731011473529,-151.0,0.0002826,7]
[341589773,1731011473538,-740.46,0.0002826,2]
[341589774,1731011473547,-500.0,0.0002826,2]
[341589775,1731011473556,-1116.29,0.0002826,2]
[341589776,1731011473566,-599.52,0.0002826,2]
[341589777,1731011473575,-801.48,0.0002826,2]
[341589778,1731011473584,-821.57,0.0002826,2]
[341589779,1731011473593,-949.5,0.0002826,2]
[341589780,1731011473602,-999.73,0.0002826,2]
[341589781,1731011473612,-1580.55,0.0002826,2]
[341589782,1731011473621,-513.85,0.0002826,2]
[341589783,1731011473632,-411.960432,0.0002826,7]
[341589784,1731011473641,-411.960432,0.0002826,7]
[341589785,1731011473650,-347.026174,0.0002826,7]
[341589786,1731011473660,-1429.73,0.0002826,2]
[341589787,1731011473669,-347.026174,0.0002826,7]
[341589788,1731011473678,-727.36,0.0002826,2]
[341589789,1731011473687,-1857.64,0.0002826,2]
[341589790,1731011473696,-1048.23,0.0002826,2]
[341589791,1731011473706,-2351.69,0.0002826,2]
[341589792,1731011473715,-1216.18,0.0002826,2]
[341589793,1731011473725,-3235.8,0.0002826,2]
[341589794,1731011473735,-641.07,0.0002826,2]
[341589795,1731011473744,-602.15,0.0002826,2]
[341589796,1731011473753,-151.0,0.0002826,7]
[341589797,1731011473762,-151.0,0.0002826,7]
[341589798,1731011473771,-151.0,0.0002826,7]
[341589799,1731011473780,-580.34,0.0002826,2]
[341589800,1731011473790,-209.197776,0.0002826,7]
[341589801,1731011473799,-649.63,0.0002826,2]
[341589802,1731011473808,-543.93,0.0002826,2]
[341589803,1731011473818,-500.0,0.00028261,2]
[341589804,1731011473827,-500.0,0.00028261,2]
[341589805,1731011473836,-500.0,0.00028261,2]
[341589806,1731011473845,-500.0,0.00028261,2]
[341589807,1731011473854,-500.0,0.00028261,2]
[341589808,1731011473863,-151.0,0.00028261,7]
[341589809,1731011473873,-500.0,0.00028261,2]
[341589810,1731011473884,-500.0,0.00028261,2]
[341589811,1731011473894,-500.0,0.00028261,2]
[341589812,1731011473903,-151.0,0.00028261,7]
[341589813,1731011473913,-151.0,0.00028261,7]
[341589814,1731011473923,-151.0,0.00028261,7]
[341589815,1731011473933,-500.0,0.00028261,2]
[341589816,1731011473943,-607.83,0.00028261,2]
[341589817,1731011473953,-500.0,0.00028261,2]
[341589818,1731011473966,-500.0,0.00028261,2]
[341589819,1731011473975,-760.46,0.00028261,2]
[341589820,1731011473985,-500.0,0.00028261,2]
[341589821,1731011473996,-500.0,0.00028261,2]
[341589822,1731011474008,-215.934326,0.00028261,7]
[341589823,1731011474017,-215.934326,0.00028261,7]
[341589824,1731011474027,-500.0,0.00028261,2]
[341589825,1731011474038,-500.0,0.00028261,2]
[341589826,1731011474049,-500.0,0.00028261,2]
[341589827,1731011474059,-500.0,0.00028261,2]
[341589828,1731011474068,-500.0,0.00028261,2]
[341589829,1731011474078,-1078.76,0.00028261,2]
[341589830,1731011474088,-500.0,0.00028261,2]
[341589831,1731011474097,-213.398111,0.00028261,7]
[341589832,1731011474107,-213.398111,0.00028261,7]
[341589833,1731011474116,-500.0,0.00028261,2]
[341589834,1731011474126,-500.0,0.00028261,2]
[341589835,1731011474137,-621.09,0.00028261,2]
[341589836,1731011474146,-151.0,0.00028261,7]
[341589837,1731011474156,-500.0,0.00028261,2]
[341589838,1731011474168,-636.57,0.00028261,2]
[341589839,1731011474178,-500.0,0.00028261,2]
[341589840,1731011474188,-675.43,0.00028261,2]
[341589841,1731011474198,-971.89,0.00028261,2]
[341589842,1731011474207,-500.0,0.00028261,2]